[Event "Late-Titled-Tuesday-Blitz-May-28-2024"]
[Site "Chess.com"]
[Date "2024.05.28"]
[Round "6"]
[White "TatjanaVasilevich"]
[Black "CheckBits"]
[Result "0-1"]
[WhiteElo "2568"]
[BlackElo "2405"]
[TimeControl "180+1"]
[EndTime "15:05:36 PDT"]
[Termination "CheckBits won by checkmate"]

1. d4 {[%clk 0:03:00.9]} 1... d5 {[%clk 0:02:58.8]} 2. c4 {[%clk 0:02:59.8]}
2... dxc4 {[%clk 0:02:56.9]} 3. e3 {[%clk 0:02:59.6]} 3... a6 {[%clk 0:02:56.9]}
4. Bxc4 {[%clk 0:02:58.5]} 4... e6 {[%clk 0:02:57]} 5. Nc3 {[%clk 0:02:56.7]}
5... b5 {[%clk 0:02:57.2]} 6. Qf3 {[%clk 0:02:55.8]} 6... Ra7 {[%clk 0:02:44.4]}
7. Bd3 {[%clk 0:02:55.3]} 7... Nf6 {[%clk 0:02:40.6]} 8. Nge2 {[%clk 0:02:54.1]}
8... c5 {[%clk 0:02:39.9]} 9. O-O {[%clk 0:02:52.9]} 9... Rd7 {[%clk 0:02:39]}
10. Rd1 {[%clk 0:02:51]} 10... Bb7 {[%clk 0:02:38.5]} 11. Qh3 {[%clk 0:02:50.7]}
11... Nc6 {[%clk 0:02:35.9]} 12. a4 {[%clk 0:02:43.8]} 12... b4 {[%clk
0:02:33.4]} 13. Ne4 {[%clk 0:02:43.3]} 13... cxd4 {[%clk 0:02:27.8]} 14. Nxf6+
{[%clk 0:02:39.8]} 14... gxf6 {[%clk 0:02:23.6]} 15. exd4 {[%clk 0:02:40.7]}
15... Nxd4 {[%clk 0:02:17.8]} 16. Nxd4 {[%clk 0:02:40.4]} 16... Rxd4 {[%clk
0:02:17.9]} 17. Qe3 {[%clk 0:02:36.1]} 17... Rg8 {[%clk 0:02:15.1]} 18. Qxd4
{[%clk 0:02:26.1]} 18... Rxg2+ {[%clk 0:02:05.9]} 19. Kf1 {[%clk 0:02:25.8]}
19... Qxd4 {[%clk 0:01:46]} 20. Bb5+ {[%clk 0:02:25.7]} 20... axb5 {[%clk
0:01:44.4]} 21. Rxd4 {[%clk 0:02:26.2]} 21... Bc5 {[%clk 0:01:39.6]} 22. Rf4
{[%clk 0:02:25.8]} 22... Rxh2 {[%clk 0:00:53.4]} 23. axb5 {[%clk 0:02:23.9]}
23... Ke7 {[%clk 0:00:44.7]} 24. b6 {[%clk 0:02:17.6]} 24... e5 {[%clk
0:00:43.1]} 25. Rc4 {[%clk 0:02:12.9]} 25... Bf3 {[%clk 0:00:36.8]} 26. Ke1
{[%clk 0:02:05.6]} 26... Bxf2+ {[%clk 0:00:30.3]} 27. Kd2 {[%clk 0:02:05.7]}
27... Bxb6+ {[%clk 0:00:27.9]} 28. Ke1 {[%clk 0:02:03.8]} 28... b3 {[%clk
0:00:14.4]} 29. Ra3 {[%clk 0:01:59.7]} 29... Bf2+ {[%clk 0:00:09.9]} 30. Kf1
{[%clk 0:01:41.6]} 30... Bd4 {[%clk 0:00:01]} 31. Ke1 {[%clk 0:01:28.4]} 31...
Rh1+ {[%clk 0:00:01]} 32. Kd2 {[%clk 0:01:28.3]} 32... Rd1# {[%clk 0:00:01.7]}
0-1

[Event "Late-Titled-Tuesday-Blitz-May-28-2024"]
[Site "Chess.com"]
[Date "2024.05.28"]
[Round "6"]
[White "GoltsevDmitry2000"]
[Black "JaackCamel"]
[Result "1-0"]
[WhiteElo "2709"]
[BlackElo "2235"]
[TimeControl "180+1"]
[EndTime "15:05:37 PDT"]
[Termination "GoltsevDmitry2000 won by resignation"]

1. e4 {[%clk 0:02:59.9]} 1... e6 {[%clk 0:02:59.2]} 2. d4 {[%clk 0:02:59.6]}
2... d5 {[%clk 0:02:58.9]} 3. exd5 {[%clk 0:03:00.5]} 3... exd5 {[%clk
0:02:58.5]} 4. Nf3 {[%clk 0:03:00.5]} 4... Nf6 {[%clk 0:02:57.9]} 5. c4 {[%clk
0:03:01.4]} 5... Be7 {[%clk 0:02:56.8]} 6. Nc3 {[%clk 0:03:01.9]} 6... O-O
{[%clk 0:02:56.4]} 7. Bd3 {[%clk 0:03:02.4]} 7... dxc4 {[%clk 0:02:56.1]} 8.
Bxc4 {[%clk 0:03:03.3]} 8... Bg4 {[%clk 0:02:54.9]} 9. O-O {[%clk 0:03:03.6]}
9... c6 {[%clk 0:02:54.5]} 10. Bg5 {[%clk 0:03:04]} 10... Nbd7 {[%clk
0:02:53.7]} 11. Re1 {[%clk 0:03:02.7]} 11... Nb6 {[%clk 0:02:52.2]} 12. Bb3
{[%clk 0:03:03]} 12... Re8 {[%clk 0:02:36.8]} 13. Bxf7+ {[%clk 0:03:01.9]} 13...
Kxf7 {[%clk 0:02:33.3]} 14. Ne5+ {[%clk 0:03:01.9]} 14... Kg8 {[%clk 0:02:33.2]}
15. Nxg4 {[%clk 0:03:01.8]} 15... Nxg4 {[%clk 0:02:31.7]} 16. Qxg4 {[%clk
0:03:01.7]} 16... Bxg5 {[%clk 0:02:26]} 17. Rxe8+ {[%clk 0:03:02.1]} 17... Qxe8
{[%clk 0:02:25.8]} 18. Qxg5 {[%clk 0:03:00]} 18... Rd8 {[%clk 0:02:23.7]} 19.
Ne4 {[%clk 0:02:58.6]} 19... Nd5 {[%clk 0:02:07.4]} 20. Re1 {[%clk 0:02:57.5]}
20... Qf8 {[%clk 0:01:58.9]} 21. Nc5 {[%clk 0:02:50.4]} 21... Re8 {[%clk
0:01:53.2]} 22. Re5 {[%clk 0:02:44.8]} 22... Rxe5 {[%clk 0:01:51.4]} 23. Qxe5
{[%clk 0:02:39.6]} 23... Qc8 {[%clk 0:01:27]} 24. Ne6 {[%clk 0:02:34.3]} 24...
Qd7 {[%clk 0:01:24.4]} 25. h4 {[%clk 0:02:27.9]} 25... h6 {[%clk 0:01:24.2]} 26.
h5 {[%clk 0:02:22.8]} 26... Qe7 {[%clk 0:01:15.2]} 27. Qb8+ {[%clk 0:02:18.4]}
27... Kf7 {[%clk 0:01:13.1]} 28. Nd8+ {[%clk 0:02:09.4]} 28... Kf6 {[%clk
0:01:13.2]} 29. Nxb7 {[%clk 0:02:08]} 29... Qe1+ {[%clk 0:01:12.4]} 30. Kh2
{[%clk 0:02:07.9]} 30... Ne7 {[%clk 0:00:53.5]} 31. Qf4+ {[%clk 0:01:52.3]}
31... Ke6 {[%clk 0:00:51.7]} 32. Nc5+ {[%clk 0:01:50.2]} 32... Kd5 {[%clk
0:00:49.3]} 33. Qf7+ {[%clk 0:01:48.5]} 33... Kxd4 {[%clk 0:00:47.2]} 34. Ne6+
{[%clk 0:01:46.8]} 34... Kd5 {[%clk 0:00:46.4]} 35. Nf4+ {[%clk 0:01:33.3]}
35... Kd6 {[%clk 0:00:45.3]} 36. Qxg7 {[%clk 0:01:32.8]} 36... Qxf2 {[%clk
0:00:39.3]} 37. Qxh6+ {[%clk 0:01:31.6]} 37... Kd7 {[%clk 0:00:37.8]} 38. Qe6+
{[%clk 0:01:30.8]} 38... Kd8 {[%clk 0:00:35.1]} 39. Qd6+ {[%clk 0:01:24.7]}
39... Ke8 {[%clk 0:00:33]} 40. Ng6 {[%clk 0:01:22.4]} 40... Nd5 {[%clk
0:00:24.8]} 41. Qxc6+ {[%clk 0:01:20.6]} 1-0

[Event "Late-Titled-Tuesday-Blitz-May-28-2024"]
[Site "Chess.com"]
[Date "2024.05.28"]
[Round "6"]
[White "jaramsdal"]
[Black "Dacean99"]
[Result "0-1"]
[WhiteElo "2410"]
[BlackElo "2598"]
[TimeControl "180+1"]
[EndTime "15:05:48 PDT"]
[Termination "Dacean99 won by resignation"]

1. Nf3 {[%clk 0:02:57.1]} 1... d5 {[%clk 0:02:58.8]} 2. g3 {[%clk 0:02:57.7]}
2... c6 {[%clk 0:02:59.7]} 3. Bg2 {[%clk 0:02:57.4]} 3... Nf6 {[%clk 0:03:00.6]}
4. O-O {[%clk 0:02:56.7]} 4... Bg4 {[%clk 0:03:01]} 5. h3 {[%clk 0:02:55.9]}
5... Bf5 {[%clk 0:02:59.5]} 6. d3 {[%clk 0:02:54.3]} 6... e6 {[%clk 0:02:59.2]}
7. Nh4 {[%clk 0:02:50]} 7... Bg6 {[%clk 0:02:58.7]} 8. Nxg6 {[%clk 0:02:44.5]}
8... hxg6 {[%clk 0:02:59.6]} 9. e4 {[%clk 0:02:41.7]} 9... Be7 {[%clk
0:02:57.4]} 10. Nc3 {[%clk 0:02:38.6]} 10... Nbd7 {[%clk 0:02:55.8]} 11. Bg5
{[%clk 0:02:33.3]} 11... Nxe4 {[%clk 0:02:39.5]} 12. Bxe7 {[%clk 0:01:38.8]}
12... Nxc3 {[%clk 0:02:37.2]} 13. Bxd8 {[%clk 0:01:31]} 13... Nxd1 {[%clk
0:02:37.2]} 14. Ba5 {[%clk 0:01:26.4]} 14... Nxb2 {[%clk 0:02:29.2]} 15. Rab1
{[%clk 0:01:23]} 15... b6 {[%clk 0:02:01.8]} 16. Bc3 {[%clk 0:01:12.8]} 16...
Na4 {[%clk 0:02:01.4]} 17. Bxg7 {[%clk 0:01:13.5]} 17... Rh7 {[%clk 0:02:01.5]}
18. Bd4 {[%clk 0:01:13.9]} 18... O-O-O {[%clk 0:01:47.9]} 19. Rfe1 {[%clk
0:01:12.7]} 19... Nac5 {[%clk 0:01:36.8]} 20. Ba1 {[%clk 0:01:09.2]} 20... Kb7
{[%clk 0:01:34]} 21. d4 {[%clk 0:01:05.9]} 21... Ne4 {[%clk 0:01:31.6]} 22. Bxe4
{[%clk 0:01:01.6]} 22... dxe4 {[%clk 0:01:32.5]} 23. Rxe4 {[%clk 0:01:00.8]}
23... Rxh3 {[%clk 0:01:29.3]} 24. Kg2 {[%clk 0:01:01.1]} 24... Rdh8 {[%clk
0:01:19.9]} 25. Rf4 {[%clk 0:00:58.4]} 25... Rh2+ {[%clk 0:01:17.9]} 26. Kf3
{[%clk 0:00:58.7]} 26... f5 {[%clk 0:01:16.2]} 27. d5 {[%clk 0:00:58.5]} 27...
e5 {[%clk 0:01:16.2]} 28. dxc6+ {[%clk 0:00:56]} 28... Kxc6 {[%clk 0:01:17.1]}
29. Rc4+ {[%clk 0:00:54.8]} 29... Kb7 {[%clk 0:01:15.1]} 30. Rd1 {[%clk
0:00:54.4]} 30... R8h7 {[%clk 0:01:12.7]} 31. Rd6 {[%clk 0:00:45.2]} 31... Nc5
{[%clk 0:01:00.4]} 32. Bxe5 {[%clk 0:00:37.3]} 32... Ne4 {[%clk 0:00:59.6]} 33.
Rxg6 {[%clk 0:00:32.8]} 33... Nd2+ {[%clk 0:00:58.6]} 34. Ke2 {[%clk 0:00:29.6]}
34... Nxc4 {[%clk 0:00:59.5]} 35. Bf4 {[%clk 0:00:26.2]} 35... Re7+ {[%clk
0:00:58]} 0-1

[Event "Late-Titled-Tuesday-Blitz-May-28-2024"]
[Site "Chess.com"]
[Date "2024.05.28"]
[Round "6"]
[White "karinachess1"]
[Black "alexrustemov"]
[Result "0-1"]
[WhiteElo "2628"]
[BlackElo "2857"]
[TimeControl "180+1"]
[EndTime "15:05:49 PDT"]
[Termination "alexrustemov won by resignation"]

1. d4 {[%clk 0:03:00.9]} 1... d5 {[%clk 0:03:00]} 2. c4 {[%clk 0:02:59]} 2...
dxc4 {[%clk 0:03:00.2]} 3. Nf3 {[%clk 0:02:56.4]} 3... Nf6 {[%clk 0:03:00.6]} 4.
e3 {[%clk 0:02:56.9]} 4... e6 {[%clk 0:03:01]} 5. Bxc4 {[%clk 0:02:57.2]} 5...
c5 {[%clk 0:03:01.4]} 6. O-O {[%clk 0:02:57.2]} 6... a6 {[%clk 0:03:01.4]} 7.
Qe2 {[%clk 0:02:56.4]} 7... b5 {[%clk 0:02:59.1]} 8. Bb3 {[%clk 0:02:54.6]} 8...
Bb7 {[%clk 0:02:58.4]} 9. Rd1 {[%clk 0:02:54]} 9... Nbd7 {[%clk 0:02:57.4]} 10.
Nc3 {[%clk 0:02:47.6]} 10... Qb8 {[%clk 0:02:54.5]} 11. d5 {[%clk 0:02:41]}
11... exd5 {[%clk 0:02:49.2]} 12. Nxd5 {[%clk 0:02:37.1]} 12... c4 {[%clk
0:02:48.5]} 13. Nxf6+ {[%clk 0:02:35.4]} 13... Nxf6 {[%clk 0:02:48.9]} 14. Bc2
{[%clk 0:02:32.8]} 14... Bd6 {[%clk 0:02:45.2]} 15. e4 {[%clk 0:02:28.1]} 15...
O-O {[%clk 0:02:40.6]} 16. Bg5 {[%clk 0:02:16.8]} 16... Ng4 {[%clk 0:02:35.2]}
17. h3 {[%clk 0:02:13.7]} 17... Ne5 {[%clk 0:02:35]} 18. Nxe5 {[%clk 0:02:11.1]}
18... Bxe5 {[%clk 0:02:35.1]} 19. Rab1 {[%clk 0:02:04.7]} 19... h6 {[%clk
0:02:34.6]} 20. Be3 {[%clk 0:02:02.9]} 20... Re8 {[%clk 0:02:32]} 21. Bd4 {[%clk
0:01:44.4]} 21... Qc7 {[%clk 0:02:26.6]} 22. Qg4 {[%clk 0:01:35.7]} 22... Rad8
{[%clk 0:02:20.1]} 23. Bxe5 {[%clk 0:01:31.5]} 23... Qxe5 {[%clk 0:02:21]} 24.
f4 {[%clk 0:00:34.6]} 24... Qc5+ {[%clk 0:02:11.1]} 25. Kh2 {[%clk 0:00:34]}
25... Rxd1 {[%clk 0:02:11.6]} 26. Rxd1 {[%clk 0:00:32.6]} 26... Bxe4 {[%clk
0:02:04.5]} 27. Bxe4 {[%clk 0:00:31.4]} 27... Rxe4 {[%clk 0:02:05.1]} 28. Rd8+
{[%clk 0:00:30.7]} 28... Kh7 {[%clk 0:02:05]} 29. Rc8 {[%clk 0:00:29.1]} 29...
Qd5 {[%clk 0:01:58.2]} 30. Rf8 {[%clk 0:00:18.4]} 30... Qe6 {[%clk 0:01:49.4]}
31. Qxe6 {[%clk 0:00:15.7]} 31... fxe6 {[%clk 0:01:48]} 32. Ra8 {[%clk
0:00:15.4]} 32... Re2 {[%clk 0:01:41.3]} 33. Rxa6 {[%clk 0:00:15]} 33... Rxb2
{[%clk 0:01:40.4]} 34. Kg3 {[%clk 0:00:14.7]} 34... b4 {[%clk 0:01:36.1]} 35.
Kf3 {[%clk 0:00:11]} 35... c3 {[%clk 0:01:27.6]} 36. Rxe6 {[%clk 0:00:06.6]}
36... Rxa2 {[%clk 0:01:26.9]} 37. g4 {[%clk 0:00:05.1]} 37... c2 {[%clk
0:01:26]} 38. Rc6 {[%clk 0:00:03.4]} 38... b3 {[%clk 0:01:26]} 39. Ke3 {[%clk
0:00:01.5]} 0-1

[Event "Late-Titled-Tuesday-Blitz-May-28-2024"]
[Site "Chess.com"]
[Date "2024.05.28"]
[Round "6"]
[White "GoValya"]
[Black "Dexter_Dyke"]
[Result "0-1"]
[WhiteElo "2223"]
[BlackElo "2446"]
[TimeControl "180+1"]
[EndTime "15:05:49 PDT"]
[Termination "Dexter_Dyke won on time"]

1. Nf3 {[%clk 0:03:00.9]} 1... Nf6 {[%clk 0:02:57.3]} 2. g3 {[%clk 0:03:01.1]}
2... g6 {[%clk 0:02:57.5]} 3. Bg2 {[%clk 0:03:01.6]} 3... Bg7 {[%clk 0:02:58.2]}
4. O-O {[%clk 0:03:01.9]} 4... O-O {[%clk 0:02:58.9]} 5. d4 {[%clk 0:03:02.4]}
5... d6 {[%clk 0:02:59.5]} 6. c4 {[%clk 0:03:02.9]} 6... a6 {[%clk 0:02:58.3]}
7. d5 {[%clk 0:03:02.7]} 7... c5 {[%clk 0:02:57.1]} 8. Nc3 {[%clk 0:03:02]} 8...
e5 {[%clk 0:02:57.1]} 9. dxe6 {[%clk 0:03:01.6]} 9... Bxe6 {[%clk 0:02:56.8]}
10. Nd2 {[%clk 0:03:01.5]} 10... Nc6 {[%clk 0:02:56.6]} 11. e3 {[%clk
0:02:58.2]} 11... d5 {[%clk 0:02:55.2]} 12. cxd5 {[%clk 0:02:56.1]} 12... Nxd5
{[%clk 0:02:55.9]} 13. Nxd5 {[%clk 0:02:55.4]} 13... Bxd5 {[%clk 0:02:56.5]} 14.
e4 {[%clk 0:02:55.8]} 14... Be6 {[%clk 0:02:55.7]} 15. Rb1 {[%clk 0:02:46.8]}
15... Bxa2 {[%clk 0:02:52.2]} 16. Ra1 {[%clk 0:02:46.9]} 16... Be6 {[%clk
0:02:52.4]} 17. Qc2 {[%clk 0:02:44.1]} 17... Qb6 {[%clk 0:02:25.6]} 18. Nc4
{[%clk 0:02:28.4]} 18... Qb4 {[%clk 0:02:25.3]} 19. Ra4 {[%clk 0:02:03.6]} 19...
Nd4 {[%clk 0:02:21.1]} 20. Qd1 {[%clk 0:01:40.8]} 20... Qb5 {[%clk 0:02:11.9]}
21. Nd6 {[%clk 0:00:49.2]} 21... Qb3 {[%clk 0:02:11.3]} 22. Qxb3 {[%clk
0:00:41.6]} 22... Bxb3 {[%clk 0:02:10.4]} 23. Ra3 {[%clk 0:00:38.2]} 23... c4
{[%clk 0:01:45.5]} 24. Nxb7 {[%clk 0:00:29]} 24... Ne2+ {[%clk 0:01:45]} 25. Kh1
{[%clk 0:00:26.2]} 25... Nxc1 {[%clk 0:01:45.6]} 26. Rxc1 {[%clk 0:00:25.8]}
26... Bxb2 {[%clk 0:01:45.7]} 27. Rxb3 {[%clk 0:00:23.6]} 27... cxb3 {[%clk
0:01:45.1]} 28. Rb1 {[%clk 0:00:23.9]} 28... Bd4 {[%clk 0:01:44.5]} 29. Rxb3
{[%clk 0:00:19.8]} 29... Bxf2 {[%clk 0:01:44.5]} 30. e5 {[%clk 0:00:20.2]} 30...
a5 {[%clk 0:01:40.9]} 31. Nd6 {[%clk 0:00:18.6]} 31... Rfb8 {[%clk 0:01:34.2]}
32. Bxa8 {[%clk 0:00:09]} 32... Rxb3 {[%clk 0:01:33.7]} 33. Bd5 {[%clk
0:00:09.1]} 33... Rb1+ {[%clk 0:01:28.7]} 34. Kg2 {[%clk 0:00:09.7]} 34... Bd4
{[%clk 0:01:28]} 35. Bxf7+ {[%clk 0:00:07.8]} 35... Kf8 {[%clk 0:01:26.6]} 36.
e6 {[%clk 0:00:08.2]} 36... a4 {[%clk 0:01:25]} 37. Nc8 {[%clk 0:00:04.4]} 37...
Bc5 {[%clk 0:01:23.6]} 0-1

[Event "Late-Titled-Tuesday-Blitz-May-28-2024"]
[Site "Chess.com"]
[Date "2024.05.28"]
[Round "6"]
[White "Magicmaster17"]
[Black "Bryanl106"]
[Result "1-0"]
[WhiteElo "2885"]
[BlackElo "2694"]
[TimeControl "180+1"]
[EndTime "15:05:54 PDT"]
[Termination "Magicmaster17 won by resignation"]

1. d4 {[%clk 0:02:54.2]} 1... Nf6 {[%clk 0:02:59.3]} 2. Nf3 {[%clk 0:02:54.9]}
2... g6 {[%clk 0:02:48.8]} 3. Nbd2 {[%clk 0:02:53.1]} 3... d5 {[%clk 0:02:47.7]}
4. e3 {[%clk 0:02:52]} 4... Bg7 {[%clk 0:02:47.6]} 5. b3 {[%clk 0:02:51.8]} 5...
O-O {[%clk 0:02:48.5]} 6. Bb2 {[%clk 0:02:52.2]} 6... Bf5 {[%clk 0:02:41.6]} 7.
Be2 {[%clk 0:02:48]} 7... a5 {[%clk 0:02:34.7]} 8. a3 {[%clk 0:02:47.7]} 8...
Ne4 {[%clk 0:02:28.8]} 9. O-O {[%clk 0:02:46.8]} 9... e6 {[%clk 0:02:07.9]} 10.
Ne5 {[%clk 0:02:42]} 10... h5 {[%clk 0:02:02.6]} 11. Ndf3 {[%clk 0:02:24.3]}
11... f6 {[%clk 0:01:43]} 12. Nd3 {[%clk 0:02:23.9]} 12... g5 {[%clk 0:01:43.2]}
13. c4 {[%clk 0:02:20.5]} 13... c6 {[%clk 0:01:40.6]} 14. Nd2 {[%clk 0:02:15.7]}
14... Nxd2 {[%clk 0:01:34.5]} 15. Qxd2 {[%clk 0:02:16.6]} 15... Qe8 {[%clk
0:01:30.2]} 16. Nc5 {[%clk 0:02:16]} 16... b6 {[%clk 0:01:18.4]} 17. Na4 {[%clk
0:02:14.1]} 17... Nd7 {[%clk 0:01:18.1]} 18. Rac1 {[%clk 0:02:14.7]} 18... Rc8
{[%clk 0:00:53.3]} 19. Rc3 {[%clk 0:01:49.3]} 19... h4 {[%clk 0:00:33.2]} 20.
cxd5 {[%clk 0:01:42.8]} 20... exd5 {[%clk 0:00:16.4]} 21. Rfc1 {[%clk
0:01:42.1]} 21... Qe6 {[%clk 0:00:16.4]} 22. Bd3 {[%clk 0:01:41]} 22... h3
{[%clk 0:00:14.7]} 23. Rxc6 {[%clk 0:01:20.4]} 23... Rxc6 {[%clk 0:00:10.4]} 24.
Rxc6 {[%clk 0:01:21.3]} 24... Qxc6 {[%clk 0:00:11.2]} 25. Bxf5 {[%clk
0:01:21.3]} 25... hxg2 {[%clk 0:00:10.1]} 26. Kxg2 {[%clk 0:01:21.2]} 26... Re8
{[%clk 0:00:06.3]} 27. Nc3 {[%clk 0:01:19.3]} 27... Nf8 {[%clk 0:00:06.3]} 28.
Qe2 {[%clk 0:01:16.2]} 28... Ne6 {[%clk 0:00:05.2]} 29. Qh5 {[%clk 0:01:15.3]}
29... Kf8 {[%clk 0:00:05.5]} 30. a4 {[%clk 0:01:13.1]} 30... Ke7 {[%clk
0:00:02.7]} 31. Nb5 {[%clk 0:01:10.4]} 31... Kd8 {[%clk 0:00:02.9]} 32. Qf7
{[%clk 0:01:09.5]} 32... Bf8 {[%clk 0:00:02.1]} 33. Qxf6+ {[%clk 0:01:08.4]}
33... Kc8 {[%clk 0:00:02.4]} 34. Na7+ {[%clk 0:01:06.4]} 34... Kb7 {[%clk
0:00:02.6]} 35. Nxc6 {[%clk 0:01:06.5]} 35... Kxc6 {[%clk 0:00:03.5]} 1-0

[Event "Late-Titled-Tuesday-Blitz-May-28-2024"]
[Site "Chess.com"]
[Date "2024.05.28"]
[Round "6"]
[White "Hikaru"]
[Black "amintabatabaei"]
[Result "1-0"]
[WhiteElo "3222"]
[BlackElo "3046"]
[TimeControl "180+1"]
[EndTime "15:06:06 PDT"]
[Termination "Hikaru won on time"]

1. e4 {[%clk 0:03:00.9]} 1... e5 {[%clk 0:02:57.4]} 2. Bc4 {[%clk 0:03:00.9]}
2... Nf6 {[%clk 0:02:56.6]} 3. d3 {[%clk 0:03:01.1]} 3... c6 {[%clk 0:02:55.6]}
4. Nf3 {[%clk 0:03:01]} 4... d5 {[%clk 0:02:55.7]} 5. Bb3 {[%clk 0:03:01.3]}
5... Bb4+ {[%clk 0:02:53]} 6. Bd2 {[%clk 0:02:59.2]} 6... Bxd2+ {[%clk
0:02:50.2]} 7. Qxd2 {[%clk 0:03:00.1]} 7... Qd6 {[%clk 0:02:36.9]} 8. Nc3 {[%clk
0:02:55.7]} 8... O-O {[%clk 0:02:32.4]} 9. O-O {[%clk 0:02:49.9]} 9... dxe4
{[%clk 0:02:28.7]} 10. dxe4 {[%clk 0:02:46.4]} 10... Qxd2 {[%clk 0:02:28.3]} 11.
Nxd2 {[%clk 0:02:47.3]} 11... Nbd7 {[%clk 0:02:18.6]} 12. Nc4 {[%clk 0:02:44.2]}
12... b5 {[%clk 0:02:06.6]} 13. Na5 {[%clk 0:02:34.8]} 13... b4 {[%clk
0:02:05.4]} 14. Na4 {[%clk 0:02:32.3]} 14... Ba6 {[%clk 0:01:35.4]} 15. Rfd1
{[%clk 0:02:23.4]} 15... Bb5 {[%clk 0:01:35.6]} 16. c4 {[%clk 0:02:22.1]} 16...
Bxa4 {[%clk 0:01:20.7]} 17. Bxa4 {[%clk 0:02:23]} 17... Nc5 {[%clk 0:01:21]} 18.
Bxc6 {[%clk 0:02:22.3]} 18... Rad8 {[%clk 0:01:21.6]} 19. f3 {[%clk 0:02:14.5]}
19... h5 {[%clk 0:01:16.5]} 20. Bd5 {[%clk 0:01:54.3]} 20... Na4 {[%clk
0:00:44.5]} 21. Nc6 {[%clk 0:01:47.4]} 21... Rde8 {[%clk 0:00:37.6]} 22. Rd2
{[%clk 0:01:43.7]} 22... h4 {[%clk 0:00:26.5]} 23. Nxb4 {[%clk 0:01:41.5]} 23...
Rb8 {[%clk 0:00:26.6]} 24. Nd3 {[%clk 0:01:39.4]} 24... Nd7 {[%clk 0:00:23.4]}
25. b4 {[%clk 0:01:38]} 25... Rfc8 {[%clk 0:00:21.9]} 26. c5 {[%clk 0:01:34.3]}
26... a5 {[%clk 0:00:22.5]} 27. a3 {[%clk 0:01:33.7]} 27... Nc3 {[%clk
0:00:21.6]} 28. c6 {[%clk 0:01:30.7]} 28... Nb6 {[%clk 0:00:18.6]} 29. Nxe5
{[%clk 0:01:29.9]} 29... Rc7 {[%clk 0:00:12.1]} 30. Rc1 {[%clk 0:01:27.2]} 30...
axb4 {[%clk 0:00:11.6]} 31. axb4 {[%clk 0:01:27.2]} 31... Nba4 {[%clk
0:00:11.6]} 32. Bb3 {[%clk 0:01:15]} 32... Rxb4 {[%clk 0:00:09.1]} 33. Bxa4
{[%clk 0:01:11.5]} 33... Nxa4 {[%clk 0:00:10]} 34. Rd7 {[%clk 0:01:11.2]} 34...
Rc8 {[%clk 0:00:10.2]} 35. c7 {[%clk 0:01:11.7]} 35... Kh7 {[%clk 0:00:07.9]}
36. Rd8 {[%clk 0:01:08.6]} 36... Nb6 {[%clk 0:00:08.1]} 37. Nxf7 {[%clk
0:01:04.8]} 1-0

[Event "Late-Titled-Tuesday-Blitz-May-28-2024"]
[Site "Chess.com"]
[Date "2024.05.28"]
[Round "6"]
[White "Slovak_fighter2000"]
[Black "GMBenjaminFinegold"]
[Result "0-1"]
[WhiteElo "2547"]
[BlackElo "2750"]
[TimeControl "180+1"]
[EndTime "15:06:06 PDT"]
[Termination "GMBenjaminFinegold won by checkmate"]

1. d4 {[%clk 0:02:56]} 1... d5 {[%clk 0:02:58.6]} 2. Nf3 {[%clk 0:02:52.8]} 2...
Nc6 {[%clk 0:02:57.7]} 3. Bf4 {[%clk 0:02:51.8]} 3... Bg4 {[%clk 0:02:57.3]} 4.
e3 {[%clk 0:02:47.6]} 4... e6 {[%clk 0:02:57.4]} 5. Be2 {[%clk 0:02:44.8]} 5...
Bd6 {[%clk 0:02:57]} 6. Bxd6 {[%clk 0:02:42.9]} 6... Qxd6 {[%clk 0:02:55.5]} 7.
O-O {[%clk 0:02:41.8]} 7... Nf6 {[%clk 0:02:52.2]} 8. c4 {[%clk 0:02:37]} 8...
dxc4 {[%clk 0:02:52]} 9. Nbd2 {[%clk 0:02:31.8]} 9... O-O {[%clk 0:02:43.5]} 10.
Nxc4 {[%clk 0:02:24.2]} 10... Qd5 {[%clk 0:02:43.6]} 11. Nce5 {[%clk 0:02:16.6]}
11... Nxe5 {[%clk 0:02:35.2]} 12. Nxe5 {[%clk 0:02:14.9]} 12... Bxe2 {[%clk
0:02:32.5]} 13. Qxe2 {[%clk 0:02:04.6]} 13... c5 {[%clk 0:02:32]} 14. Nf3 {[%clk
0:01:40.7]} 14... c4 {[%clk 0:02:17.7]} 15. Ne5 {[%clk 0:01:28.7]} 15... b5
{[%clk 0:02:14.3]} 16. Rfc1 {[%clk 0:00:57.3]} 16... Rfc8 {[%clk 0:02:12.4]} 17.
h3 {[%clk 0:00:50]} 17... h6 {[%clk 0:02:11.7]} 18. a4 {[%clk 0:00:49.2]} 18...
a6 {[%clk 0:02:09.4]} 19. Qf3 {[%clk 0:00:44]} 19... Qxf3 {[%clk 0:02:06.9]} 20.
gxf3 {[%clk 0:00:42.7]} 20... Nd5 {[%clk 0:02:03.2]} 21. axb5 {[%clk 0:00:37.6]}
21... axb5 {[%clk 0:02:02.8]} 22. f4 {[%clk 0:00:33.7]} 22... f6 {[%clk
0:01:54.3]} 23. Nd7 {[%clk 0:00:30.7]} 23... Kf7 {[%clk 0:01:50.2]} 24. Nc5
{[%clk 0:00:30.8]} 24... Ke7 {[%clk 0:01:46.3]} 25. Kg2 {[%clk 0:00:30.2]} 25...
Nb6 {[%clk 0:01:36.9]} 26. Kf3 {[%clk 0:00:28.9]} 26... Nd7 {[%clk 0:01:32.1]}
27. Nxd7 {[%clk 0:00:13.5]} 27... Kxd7 {[%clk 0:01:33]} 28. Rg1 {[%clk
0:00:11.5]} 28... g5 {[%clk 0:01:28.2]} 29. fxg5 {[%clk 0:00:12.4]} 29... hxg5
{[%clk 0:01:26.1]} 30. Ke4 {[%clk 0:00:12.6]} 30... Kd6 {[%clk 0:01:22.4]} 31.
f4 {[%clk 0:00:09.9]} 31... gxf4 {[%clk 0:01:19.4]} 32. Kxf4 {[%clk 0:00:10.8]}
32... b4 {[%clk 0:01:18.4]} 33. h4 {[%clk 0:00:06.4]} 33... c3 {[%clk
0:01:15.7]} 34. bxc3 {[%clk 0:00:06.1]} 34... bxc3 {[%clk 0:01:15.6]} 35. Rac1
{[%clk 0:00:05.2]} 35... Ra2 {[%clk 0:01:10.8]} 36. Rh1 {[%clk 0:00:03.9]} 36...
Rf2+ {[%clk 0:01:06.2]} 37. Ke4 {[%clk 0:00:04.3]} 37... f5+ {[%clk 0:01:01.9]}
38. Kd3 {[%clk 0:00:04.7]} 38... Rd2# {[%clk 0:01:02]} 0-1